[Event "Early-Titled-Tuesday-Blitz-November-28-2023"]
[Site "Chess.com"]
[Date "2023.11.28"]
[Round "5"]
[White "GHANDEEVAM2003"]
[Black "MITerryble"]
[Result "1-0"]
[WhiteElo "3148"]
[BlackElo "2961"]
[TimeControl "180+1"]
[EndTime "8:58:16 PST"]
[Termination "GHANDEEVAM2003 won on time"]

1. c4 {[%clk 0:02:50.6]} 1... b6 {[%clk 0:02:56.5]} 2. g3 {[%clk 0:02:49.2]}
2... Bb7 {[%clk 0:02:56.6]} 3. Nf3 {[%clk 0:02:49.9]} 3... Nf6 {[%clk
0:02:56.1]} 4. Bg2 {[%clk 0:02:49.8]} 4... g6 {[%clk 0:02:56.5]} 5. O-O {[%clk
0:02:47.9]} 5... Bg7 {[%clk 0:02:56.3]} 6. d4 {[%clk 0:02:46.2]} 6... e6 {[%clk
0:02:55.8]} 7. Re1 {[%clk 0:02:40.5]} 7... O-O {[%clk 0:02:55]} 8. Nc3 {[%clk
0:02:38.3]} 8... Ne4 {[%clk 0:02:54.9]} 9. Qd3 {[%clk 0:02:34.2]} 9... Nxc3
{[%clk 0:02:53.5]} 10. bxc3 {[%clk 0:02:35.1]} 10... d6 {[%clk 0:02:52.1]} 11.
e4 {[%clk 0:02:34.6]} 11... Nd7 {[%clk 0:02:41.2]} 12. h4 {[%clk 0:02:30.2]}
12... h6 {[%clk 0:02:39.4]} 13. Bf4 {[%clk 0:02:28.3]} 13... Qe7 {[%clk
0:02:33.2]} 14. Qd2 {[%clk 0:02:19.5]} 14... Kh7 {[%clk 0:02:32.6]} 15. a4
{[%clk 0:02:17.1]} 15... e5 {[%clk 0:02:26.4]} 16. Be3 {[%clk 0:02:13.9]} 16...
a5 {[%clk 0:02:27]} 17. h5 {[%clk 0:01:59.2]} 17... Nf6 {[%clk 0:02:23.6]} 18.
hxg6+ {[%clk 0:01:57]} 18... fxg6 {[%clk 0:02:24.5]} 19. Nh4 {[%clk 0:01:56.6]}
19... Ng4 {[%clk 0:02:19.8]} 20. d5 {[%clk 0:01:20]} 20... Rf7 {[%clk
0:02:06.9]} 21. Bh3 {[%clk 0:01:14.8]} 21... Bc8 {[%clk 0:01:50.7]} 22. Qe2
{[%clk 0:01:09.6]} 22... h5 {[%clk 0:01:41.2]} 23. Kg2 {[%clk 0:00:58]} 23...
Nxe3+ {[%clk 0:01:20.5]} 24. Qxe3 {[%clk 0:00:58.9]} 24... Bxh3+ {[%clk
0:01:20.8]} 25. Kxh3 {[%clk 0:00:59.6]} 25... Raf8 {[%clk 0:01:20.5]} 26. Rf1
{[%clk 0:00:55.5]} 26... Bh6 {[%clk 0:01:20.5]} 27. Qe2 {[%clk 0:00:50.6]} 27...
Bg5 {[%clk 0:01:20]} 28. Ng2 {[%clk 0:00:50.6]} 28... Rf3 {[%clk 0:01:08.9]} 29.
Ne1 {[%clk 0:00:49.6]} 29... Rxc3 {[%clk 0:01:03.7]} 30. f3 {[%clk 0:00:49.9]}
30... h4 {[%clk 0:00:56.5]} 31. Nd3 {[%clk 0:00:42.9]} 31... hxg3 {[%clk
0:00:48.4]} 32. Rh1 {[%clk 0:00:38.9]} 32... Bf4 {[%clk 0:00:37.6]} 33. Kg2+
{[%clk 0:00:37.5]} 33... Kg7 {[%clk 0:00:37.7]} 34. Rh3 {[%clk 0:00:35.9]} 34...
Rh8 {[%clk 0:00:37.6]} 35. Rah1 {[%clk 0:00:36.5]} 35... Rxh3 {[%clk 0:00:37.3]}
36. Rxh3 {[%clk 0:00:37.4]} 36... Qg5 {[%clk 0:00:36.7]} 37. Qd1 {[%clk
0:00:29.7]} 37... Rxc4 {[%clk 0:00:34.5]} 38. Qb3 {[%clk 0:00:29.1]} 38... Rc5
{[%clk 0:00:01.9]} 39. Nxc5 {[%clk 0:00:29.3]} 39... dxc5 {[%clk 0:00:02.1]} 40.
Qb5 {[%clk 0:00:21.2]} 40... Qe7 {[%clk 0:00:01.9]} 41. Rh1 {[%clk 0:00:16.8]}
41... Qd8 {[%clk 0:00:01.7]} 42. Qc6 {[%clk 0:00:15.3]} 1-0

[Event "Early-Titled-Tuesday-Blitz-November-28-2023"]
[Site "Chess.com"]
[Date "2023.11.28"]
[Round "5"]
[White "Qvalda"]
[Black "Shuvalov"]
[Result "0-1"]
[WhiteElo "2413"]
[BlackElo "2579"]
[TimeControl "180+1"]
[EndTime "8:58:16 PST"]
[Termination "Shuvalov won on time"]

1. Nf3 {[%clk 0:03:00.9]} 1... Nf6 {[%clk 0:02:59.6]} 2. g3 {[%clk 0:03:01.1]}
2... g6 {[%clk 0:02:59.5]} 3. b3 {[%clk 0:03:01.5]} 3... Bg7 {[%clk 0:02:59.6]}
4. Bb2 {[%clk 0:03:02.2]} 4... O-O {[%clk 0:02:59.6]} 5. Bg2 {[%clk 0:03:02.7]}
5... c5 {[%clk 0:02:59.9]} 6. c4 {[%clk 0:03:02.7]} 6... d5 {[%clk 0:02:57.3]}
7. cxd5 {[%clk 0:03:03.6]} 7... Qxd5 {[%clk 0:02:57.7]} 8. d4 {[%clk 0:02:57.9]}
8... cxd4 {[%clk 0:02:54.2]} 9. Qxd4 {[%clk 0:02:58.8]} 9... Nc6 {[%clk
0:02:43.6]} 10. Qxd5 {[%clk 0:02:50.3]} 10... Nxd5 {[%clk 0:02:44.5]} 11. Bxg7
{[%clk 0:02:49.8]} 11... Kxg7 {[%clk 0:02:45.4]} 12. O-O {[%clk 0:02:48.6]}
12... Rd8 {[%clk 0:02:30.5]} 13. Rd1 {[%clk 0:02:38.8]} 13... Bf5 {[%clk
0:02:22.1]} 14. Na3 {[%clk 0:02:25.3]} 14... Nc3 {[%clk 0:02:17.7]} 15. Rxd8
{[%clk 0:02:19.9]} 15... Rxd8 {[%clk 0:02:18.6]} 16. Kf1 {[%clk 0:02:19.4]}
16... Nb4 {[%clk 0:02:05.9]} 17. Nh4 {[%clk 0:02:00.5]} 17... Bc8 {[%clk
0:01:59]} 18. Nc4 {[%clk 0:01:35.4]} 18... Nbxa2 {[%clk 0:01:53.4]} 19. Na5
{[%clk 0:01:32.6]} 19... b6 {[%clk 0:01:42.8]} 20. Nc6 {[%clk 0:01:31.4]} 20...
Rd7 {[%clk 0:01:41.9]} 21. Nf3 {[%clk 0:01:21.4]} 21... Ba6 {[%clk 0:01:33.2]}
22. Nfd4 {[%clk 0:01:01.7]} 22... e5 {[%clk 0:01:20.5]} 23. Nb8 {[%clk
0:00:49.1]} 23... Rxd4 {[%clk 0:01:20.3]} 24. Nxa6 {[%clk 0:00:48.1]} 24... Rd2
{[%clk 0:01:16.4]} 25. e3 {[%clk 0:00:37.2]} 25... f5 {[%clk 0:01:14.5]} 26. Nc7
{[%clk 0:00:20.3]} 26... e4 {[%clk 0:01:10.1]} 27. Ne6+ {[%clk 0:00:19.1]} 27...
Kf6 {[%clk 0:01:09.4]} 28. Nd4 {[%clk 0:00:20]} 28... a5 {[%clk 0:01:05.6]} 29.
h3 {[%clk 0:00:17.8]} 29... h5 {[%clk 0:01:04.2]} 30. g4 {[%clk 0:00:18.3]}
30... fxg4 {[%clk 0:01:03.1]} 31. hxg4 {[%clk 0:00:19.2]} 31... h4 {[%clk
0:01:03.6]} 32. Ke1 {[%clk 0:00:16.5]} 32... Rb2 {[%clk 0:01:00.4]} 33. Bf1
{[%clk 0:00:10.6]} 33... g5 {[%clk 0:00:58.4]} 34. Bg2 {[%clk 0:00:10.2]} 34...
b5 {[%clk 0:00:54.8]} 35. Nf5 {[%clk 0:00:09.5]} 35... Rxb3 {[%clk 0:00:51.5]}
36. Nd6 {[%clk 0:00:09.3]} 36... Rb4 {[%clk 0:00:47.3]} 37. Ne8+ {[%clk
0:00:07.3]} 37... Ke5 {[%clk 0:00:46.5]} 38. Nc7 {[%clk 0:00:06.3]} 38... Rb2
{[%clk 0:00:45.2]} 39. Bf1 {[%clk 0:00:06.1]} 39... b4 {[%clk 0:00:42.4]} 40.
Na6 {[%clk 0:00:05.7]} 40... b3 {[%clk 0:00:41.6]} 41. Nc5 {[%clk 0:00:05.4]}
41... a4 {[%clk 0:00:35.7]} 42. Bc4 {[%clk 0:00:03.8]} 42... h3 {[%clk
0:00:32.3]} 43. Kf1 {[%clk 0:00:03.2]} 43... Rd2 {[%clk 0:00:27.5]} 44. Nxa4
{[%clk 0:00:01.2]} 44... Nxa4 {[%clk 0:00:23.9]} 45. Bxb3 {[%clk 0:00:01.3]}
45... N4c3 {[%clk 0:00:23.7]} 46. Kg1 {[%clk 0:00:01.6]} 46... Rc2 {[%clk
0:00:18.6]} 47. Bxc2 {[%clk 0:00:01.3]} 47... Nb4 {[%clk 0:00:14.9]} 0-1

[Event "Early-Titled-Tuesday-Blitz-November-28-2023"]
[Site "Chess.com"]
[Date "2023.11.28"]
[Round "5"]
[White "LoveUMore"]
[Black "Witik"]
[Result "0-1"]
[WhiteElo "2565"]
[BlackElo "2802"]
[TimeControl "180+1"]
[EndTime "8:58:18 PST"]
[Termination "Witik won on time"]

1. d4 {[%clk 0:02:57.8]} 1... Nf6 {[%clk 0:02:57.6]} 2. c4 {[%clk 0:02:57.7]}
2... g6 {[%clk 0:02:54.3]} 3. Nc3 {[%clk 0:02:57.4]} 3... Bg7 {[%clk 0:02:53.5]}
4. e4 {[%clk 0:02:57.4]} 4... d6 {[%clk 0:02:53.3]} 5. Nge2 {[%clk 0:02:57.9]}
5... O-O {[%clk 0:02:52.7]} 6. Ng3 {[%clk 0:02:58.5]} 6... c5 {[%clk 0:02:49]}
7. d5 {[%clk 0:02:58.5]} 7... e6 {[%clk 0:02:49]} 8. Be2 {[%clk 0:02:58.9]} 8...
exd5 {[%clk 0:02:48.4]} 9. cxd5 {[%clk 0:02:59.6]} 9... h5 {[%clk 0:02:45]} 10.
Bg5 {[%clk 0:02:59.1]} 10... a6 {[%clk 0:02:42.5]} 11. a4 {[%clk 0:02:58.7]}
11... Qe8 {[%clk 0:02:42.4]} 12. O-O {[%clk 0:02:48.7]} 12... Nbd7 {[%clk
0:02:40.8]} 13. Qd2 {[%clk 0:02:45.1]} 13... Nh7 {[%clk 0:02:38.4]} 14. Bh4
{[%clk 0:02:44.7]} 14... Qe5 {[%clk 0:02:14.8]} 15. f4 {[%clk 0:02:40.8]} 15...
Qd4+ {[%clk 0:02:14.2]} 16. Qxd4 {[%clk 0:02:40.8]} 16... cxd4 {[%clk 0:02:11]}
17. Nd1 {[%clk 0:02:40.8]} 17... Re8 {[%clk 0:02:10.2]} 18. Bf3 {[%clk
0:02:27.6]} 18... d3 {[%clk 0:01:58.2]} 19. Ra3 {[%clk 0:02:24]} 19... d2 {[%clk
0:01:39.7]} 20. Rd3 {[%clk 0:02:08]} 20... Nc5 {[%clk 0:01:38.4]} 21. Rxd2
{[%clk 0:02:08.1]} 21... Nxa4 {[%clk 0:01:38.9]} 22. Ne2 {[%clk 0:01:53.7]}
22... Nc5 {[%clk 0:01:36.4]} 23. Nec3 {[%clk 0:01:37.6]} 23... Bg4 {[%clk
0:01:28]} 24. Bf2 {[%clk 0:01:29.8]} 24... Rac8 {[%clk 0:01:19.3]} 25. Bxg4
{[%clk 0:01:14.7]} 25... hxg4 {[%clk 0:01:17.1]} 26. Bxc5 {[%clk 0:00:58.6]}
26... Rxc5 {[%clk 0:01:16.1]} 27. Re1 {[%clk 0:00:51]} 27... f5 {[%clk
0:01:09.3]} 28. Rde2 {[%clk 0:00:35.3]} 28... Bd4+ {[%clk 0:00:55]} 29. Kf1
{[%clk 0:00:34.9]} 29... Nf6 {[%clk 0:00:53.1]} 30. exf5 {[%clk 0:00:34.5]}
30... Rxe2 {[%clk 0:00:44.3]} 31. Nxe2 {[%clk 0:00:33.7]} 31... Rxd5 {[%clk
0:00:44.7]} 32. fxg6 {[%clk 0:00:28.4]} 32... Ba7 {[%clk 0:00:35.7]} 33. Ndc3
{[%clk 0:00:23.6]} 33... Rh5 {[%clk 0:00:35.6]} 34. Ng3 {[%clk 0:00:20.3]} 34...
Rxh2 {[%clk 0:00:35.3]} 35. Re6 {[%clk 0:00:14.6]} 35... Kg7 {[%clk 0:00:33.2]}
36. f5 {[%clk 0:00:11.8]} 36... Bd4 {[%clk 0:00:29.1]} 37. Re7+ {[%clk
0:00:10.2]} 37... Kg8 {[%clk 0:00:27.7]} 38. Nce4 {[%clk 0:00:08.4]} 38... Nd5
{[%clk 0:00:23.8]} 39. Rd7 {[%clk 0:00:06.8]} 39... Be5 {[%clk 0:00:20]} 40. f6
{[%clk 0:00:01.2]} 40... Nxf6 {[%clk 0:00:19.9]} 41. Nxf6+ {[%clk 0:00:01.5]}
41... Bxf6 {[%clk 0:00:20.8]} 42. Nf5 {[%clk 0:00:01.9]} 42... Rh5 {[%clk
0:00:15.2]} 0-1

[Event "Early-Titled-Tuesday-Blitz-November-28-2023"]
[Site "Chess.com"]
[Date "2023.11.28"]
[Round "5"]
[White "DvaHrasta"]
[Black "CSB7"]
[Result "1/2-1/2"]
[WhiteElo "2504"]
[BlackElo "2714"]
[TimeControl "180+1"]
[EndTime "8:58:18 PST"]
[Termination "Game drawn by repetition"]

1. c4 {[%clk 0:03:00.9]} 1... g6 {[%clk 0:02:58]} 2. g3 {[%clk 0:03:00.2]} 2...
Bg7 {[%clk 0:02:55.8]} 3. Bg2 {[%clk 0:03:00.4]} 3... Nf6 {[%clk 0:02:56]} 4.
Nc3 {[%clk 0:03:00.6]} 4... O-O {[%clk 0:02:54.3]} 5. Nf3 {[%clk 0:03:00.8]}
5... d6 {[%clk 0:02:47.6]} 6. O-O {[%clk 0:03:00.5]} 6... c6 {[%clk 0:02:48.2]}
7. d3 {[%clk 0:02:59.8]} 7... e5 {[%clk 0:02:41.2]} 8. Rb1 {[%clk 0:02:59.7]}
8... a5 {[%clk 0:02:40.4]} 9. a3 {[%clk 0:02:59.9]} 9... Re8 {[%clk 0:02:40.3]}
10. e4 {[%clk 0:02:59.4]} 10... Na6 {[%clk 0:02:15.1]} 11. b4 {[%clk 0:02:58.2]}
11... axb4 {[%clk 0:02:16]} 12. axb4 {[%clk 0:02:58.4]} 12... Nc7 {[%clk
0:02:16.6]} 13. h3 {[%clk 0:02:57.6]} 13... h6 {[%clk 0:02:07.2]} 14. Be3 {[%clk
0:02:52.7]} 14... d5 {[%clk 0:02:06.4]} 15. cxd5 {[%clk 0:02:44.9]} 15... cxd5
{[%clk 0:02:06.3]} 16. Bb6 {[%clk 0:02:39.2]} 16... Ra6 {[%clk 0:01:54.4]} 17.
Bxc7 {[%clk 0:02:35.8]} 17... Qxc7 {[%clk 0:01:55.3]} 18. Nxd5 {[%clk
0:02:35.8]} 18... Nxd5 {[%clk 0:01:55.5]} 19. exd5 {[%clk 0:02:36.1]} 19... Rd6
{[%clk 0:01:56.2]} 20. Nd2 {[%clk 0:02:33.6]} 20... b5 {[%clk 0:01:48.6]} 21.
Ne4 {[%clk 0:02:27]} 21... Rxd5 {[%clk 0:01:32.2]} 22. Nf6+ {[%clk 0:02:25.7]}
22... Bxf6 {[%clk 0:01:32.4]} 23. Bxd5 {[%clk 0:02:25.3]} 23... Bxh3 {[%clk
0:01:33.1]} 24. Bg2 {[%clk 0:02:23.1]} 24... Bf5 {[%clk 0:01:27.3]} 25. Qb3
{[%clk 0:02:15.5]} 25... Qd6 {[%clk 0:01:10.6]} 26. Rfd1 {[%clk 0:02:09.2]}
26... Rd8 {[%clk 0:00:57]} 27. Be4 {[%clk 0:02:07.8]} 27... Be6 {[%clk
0:00:49.6]} 28. Qb2 {[%clk 0:02:01.3]} 28... Bg7 {[%clk 0:00:42]} 29. Rbc1
{[%clk 0:01:59.3]} 29... h5 {[%clk 0:00:38.5]} 30. Rc6 {[%clk 0:01:56.4]} 30...
Qe7 {[%clk 0:00:38.1]} 31. Rdc1 {[%clk 0:01:52.4]} 31... h4 {[%clk 0:00:34.1]}
32. Kg2 {[%clk 0:01:35.7]} 32... Qg5 {[%clk 0:00:29.5]} 33. Rh1 {[%clk
0:01:24.3]} 33... hxg3 {[%clk 0:00:16.6]} 34. fxg3 {[%clk 0:01:24.1]} 34... Bg4
{[%clk 0:00:15.1]} 35. Rf1 {[%clk 0:00:53.6]} 35... f5 {[%clk 0:00:15.1]} 36.
Qb3+ {[%clk 0:00:46.4]} 36... Kh7 {[%clk 0:00:14.2]} 37. Rh1+ {[%clk 0:00:42.3]}
37... Bh5 {[%clk 0:00:13.9]} 38. Rxh5+ {[%clk 0:00:13.2]} 38... gxh5 {[%clk
0:00:09.9]} 39. Bf3 {[%clk 0:00:11.9]} 39... f4 {[%clk 0:00:10.3]} 40. Be4+
{[%clk 0:00:11.5]} 40... Kh8 {[%clk 0:00:10.3]} 41. Qf7 {[%clk 0:00:09.8]} 41...
Qxg3+ {[%clk 0:00:09.8]} 42. Kf1 {[%clk 0:00:09.8]} 42... Qh3+ {[%clk
0:00:09.9]} 43. Ke1 {[%clk 0:00:08.7]} 43... Qe3+ {[%clk 0:00:09.2]} 44. Kf1
{[%clk 0:00:08.3]} 44... Qh3+ {[%clk 0:00:09.1]} 45. Ke1 {[%clk 0:00:08.6]}
45... Qg3+ {[%clk 0:00:08.9]} 46. Kf1 {[%clk 0:00:08.7]} 46... Qh3+ {[%clk
0:00:05.7]} 1/2-1/2

[Event "Early-Titled-Tuesday-Blitz-November-28-2023"]
[Site "Chess.com"]
[Date "2023.11.28"]
[Round "5"]
[White "secretsuperstar7"]
[Black "AnaKuchava"]
[Result "1-0"]
[WhiteElo "2456"]
[BlackElo "2225"]
[TimeControl "180+1"]
[EndTime "8:58:19 PST"]
[Termination "secretsuperstar7 won by checkmate"]

1. c4 {[%clk 0:02:55.5]} 1... e6 {[%clk 0:02:58.1]} 2. Nc3 {[%clk 0:02:54.7]}
2... d5 {[%clk 0:02:57.5]} 3. e3 {[%clk 0:02:54.8]} 3... Nf6 {[%clk 0:02:53]} 4.
Nf3 {[%clk 0:02:54.8]} 4... c5 {[%clk 0:02:47.6]} 5. cxd5 {[%clk 0:02:54.4]}
5... exd5 {[%clk 0:02:32.5]} 6. d4 {[%clk 0:02:54.1]} 6... Nc6 {[%clk
0:02:31.9]} 7. h3 {[%clk 0:02:46.5]} 7... Be7 {[%clk 0:02:23.1]} 8. Bd3 {[%clk
0:02:42.7]} 8... O-O {[%clk 0:02:22.1]} 9. O-O {[%clk 0:02:42.4]} 9... c4 {[%clk
0:02:19.4]} 10. Bc2 {[%clk 0:02:37.6]} 10... a6 {[%clk 0:02:19.2]} 11. Ne5
{[%clk 0:02:34.5]} 11... Qc7 {[%clk 0:02:14]} 12. f4 {[%clk 0:02:32.4]} 12... b5
{[%clk 0:02:08]} 13. Qf3 {[%clk 0:02:24.4]} 13... Rd8 {[%clk 0:01:57.1]} 14. a3
{[%clk 0:02:11.7]} 14... Bb7 {[%clk 0:01:38.8]} 15. Bd2 {[%clk 0:02:05.9]} 15...
Qb6 {[%clk 0:01:23.4]} 16. g4 {[%clk 0:01:43.5]} 16... b4 {[%clk 0:01:18.1]} 17.
axb4 {[%clk 0:01:22.9]} 17... Nxb4 {[%clk 0:01:19]} 18. Bb1 {[%clk 0:01:21.5]}
18... Nd3 {[%clk 0:01:11]} 19. Nxd3 {[%clk 0:01:14.3]} 19... cxd3 {[%clk
0:01:09.5]} 20. Bxd3 {[%clk 0:01:12.7]} 20... Qxb2 {[%clk 0:01:08.8]} 21. Qe2
{[%clk 0:01:02.5]} 21... Qb6 {[%clk 0:00:51.3]} 22. Rfb1 {[%clk 0:00:57.6]}
22... Qc7 {[%clk 0:00:42]} 23. Na4 {[%clk 0:00:53.5]} 23... Ne4 {[%clk
0:00:35.3]} 24. Rc1 {[%clk 0:00:29.9]} 24... Qd6 {[%clk 0:00:30.4]} 25. Ba5
{[%clk 0:00:28]} 25... Rdc8 {[%clk 0:00:22.9]} 26. Nb6 {[%clk 0:00:19.4]} 26...
Rxc1+ {[%clk 0:00:22.5]} 27. Rxc1 {[%clk 0:00:19.8]} 27... Re8 {[%clk
0:00:21.3]} 28. Bxa6 {[%clk 0:00:16.5]} 28... Bxa6 {[%clk 0:00:13.8]} 29. Qxa6
{[%clk 0:00:16.7]} 29... Bh4 {[%clk 0:00:11.9]} 30. Qb5 {[%clk 0:00:14.2]} 30...
Qe7 {[%clk 0:00:07.2]} 31. Nxd5 {[%clk 0:00:11.8]} 31... Qf8 {[%clk 0:00:07.4]}
32. Qd3 {[%clk 0:00:08.2]} 32... h5 {[%clk 0:00:06.2]} 33. Kg2 {[%clk 0:00:08]}
33... hxg4 {[%clk 0:00:05.8]} 34. hxg4 {[%clk 0:00:08.2]} 34... Qd6 {[%clk
0:00:06.5]} 35. Nc3 {[%clk 0:00:07.2]} 35... Nxc3 {[%clk 0:00:05.5]} 36. Qxc3
{[%clk 0:00:07.4]} 36... Qd5+ {[%clk 0:00:06.1]} 37. Kh3 {[%clk 0:00:06.7]}
37... Qf3+ {[%clk 0:00:05.6]} 38. Kxh4 {[%clk 0:00:07]} 38... g5+ {[%clk
0:00:04.9]} 39. Kxg5 {[%clk 0:00:06.9]} 39... Re6 {[%clk 0:00:02.6]} 40. Qc8+
{[%clk 0:00:06.5]} 40... Kg7 {[%clk 0:00:02.9]} 41. d5 {[%clk 0:00:05.2]} 41...
Rg6+ {[%clk 0:00:02.5]} 42. Kf5 {[%clk 0:00:05.3]} 42... Qxe3 {[%clk 0:00:02.7]}
43. Bc3+ {[%clk 0:00:05.1]} 43... Kh7 {[%clk 0:00:02.2]} 44. Qh8# {[%clk
0:00:05.1]} 1-0

[Event "Early-Titled-Tuesday-Blitz-November-28-2023"]
[Site "Chess.com"]
[Date "2023.11.28"]
[Round "5"]
[White "Casper"]
[Black "Willi_Skibbe"]
[Result "1-0"]
[WhiteElo "2424"]
[BlackElo "2267"]
[TimeControl "180+1"]
[EndTime "8:58:23 PST"]
[Termination "Casper won on time"]

1. d4 {[%clk 0:03:00.9]} 1... Nf6 {[%clk 0:02:54.7]} 2. Bf4 {[%clk 0:03:01.2]}
2... d5 {[%clk 0:02:49.8]} 3. e3 {[%clk 0:03:01.6]} 3... c5 {[%clk 0:02:50.1]}
4. Nf3 {[%clk 0:03:01.8]} 4... Qb6 {[%clk 0:02:49.6]} 5. Na3 {[%clk 0:03:00.9]}
5... a6 {[%clk 0:02:26.9]} 6. Qc1 {[%clk 0:02:41.5]} 6... Nc6 {[%clk 0:02:14.3]}
7. c3 {[%clk 0:02:26.2]} 7... Bf5 {[%clk 0:02:11.9]} 8. h3 {[%clk 0:02:14.2]}
8... e6 {[%clk 0:02:04.8]} 9. Be2 {[%clk 0:02:08.8]} 9... Be7 {[%clk 0:01:59.8]}
10. O-O {[%clk 0:02:08.4]} 10... O-O {[%clk 0:01:59.6]} 11. Nh4 {[%clk
0:02:04.2]} 11... Bg6 {[%clk 0:01:59.1]} 12. Nxg6 {[%clk 0:02:03.3]} 12... hxg6
{[%clk 0:02:00]} 13. Rb1 {[%clk 0:01:53.8]} 13... Rac8 {[%clk 0:01:58.8]} 14.
dxc5 {[%clk 0:01:38.7]} 14... Bxc5 {[%clk 0:01:55.4]} 15. b4 {[%clk 0:01:38.1]}
15... Be7 {[%clk 0:01:29.7]} 16. b5 {[%clk 0:01:38.2]} 16... axb5 {[%clk
0:01:28.4]} 17. Nxb5 {[%clk 0:01:36.5]} 17... Qd8 {[%clk 0:01:14.1]} 18. Nd4
{[%clk 0:01:13.6]} 18... Nxd4 {[%clk 0:00:37.8]} 19. exd4 {[%clk 0:01:14.5]}
19... Ne4 {[%clk 0:00:33.6]} 20. Rxb7 {[%clk 0:01:08.7]} 20... Nxc3 {[%clk
0:00:21.4]} 21. Qb2 {[%clk 0:01:08.8]} 21... Nxe2+ {[%clk 0:00:19.6]} 22. Qxe2
{[%clk 0:01:09.7]} 22... Bf6 {[%clk 0:00:20.2]} 23. Be5 {[%clk 0:01:00.4]} 23...
Bxe5 {[%clk 0:00:20]} 24. Qxe5 {[%clk 0:00:59.9]} 24... Qa5 {[%clk 0:00:20.9]}
25. Rb2 {[%clk 0:00:55.7]} 25... Rc4 {[%clk 0:00:20.1]} 26. Rfb1 {[%clk
0:00:51.2]} 26... Qc3 {[%clk 0:00:19.6]} 27. Rb8 {[%clk 0:00:51.2]} 27... Rcc8
{[%clk 0:00:13.9]} 28. R8b7 {[%clk 0:00:49.6]} 28... Rc4 {[%clk 0:00:11.9]} 29.
Rb8 {[%clk 0:00:49.5]} 29... Rcc8 {[%clk 0:00:11.7]} 30. R8b7 {[%clk 0:00:50.1]}
30... Rc4 {[%clk 0:00:10.2]} 31. Qd6 {[%clk 0:00:43.1]} 31... Qxd4 {[%clk
0:00:09.2]} 32. Rb8 {[%clk 0:00:38.9]} 32... Rcc8 {[%clk 0:00:09.2]} 33. Rxc8
{[%clk 0:00:23]} 33... Rxc8 {[%clk 0:00:10.1]} 34. Qd7 {[%clk 0:00:23.6]} 34...
Rf8 {[%clk 0:00:04.7]} 35. a4 {[%clk 0:00:24]} 35... Qe4 {[%clk 0:00:02.4]} 36.
Ra1 {[%clk 0:00:24]} 36... d4 {[%clk 0:00:03]} 37. a5 {[%clk 0:00:23]} 37... d3
{[%clk 0:00:02.8]} 38. a6 {[%clk 0:00:23.4]} 38... d2 {[%clk 0:00:01.2]} 39.
Qxd2 {[%clk 0:00:22.7]} 39... Ra8 {[%clk 0:00:02]} 40. Qd7 {[%clk 0:00:22.3]}
40... Qd5 {[%clk 0:00:01.9]} 41. Qc7 {[%clk 0:00:19.5]} 41... Kf8 {[%clk
0:00:01.5]} 42. a7 {[%clk 0:00:18.7]} 42... Kg8 {[%clk 0:00:01.8]} 43. Rb1
{[%clk 0:00:17.3]} 43... Kh7 {[%clk 0:00:02.4]} 44. Qf4 {[%clk 0:00:15.4]} 44...
g5 {[%clk 0:00:01.7]} 45. Qe3 {[%clk 0:00:14.5]} 45... e5 {[%clk 0:00:01.2]} 46.
Rb8 {[%clk 0:00:12.6]} 46... f6 {[%clk 0:00:01.2]} 47. Kh2 {[%clk 0:00:10.9]}
47... Kh6 {[%clk 0:00:01.3]} 48. h4 {[%clk 0:00:10.3]} 1-0

[Event "Early-Titled-Tuesday-Blitz-November-28-2023"]
[Site "Chess.com"]
[Date "2023.11.28"]
[Round "5"]
[White "Flawless_Fighter"]
[Black "GP9isback23"]
[Result "0-1"]
[WhiteElo "2799"]
[BlackElo "2627"]
[TimeControl "180+1"]
[EndTime "8:58:24 PST"]
[Termination "GP9isback23 won by resignation"]

1. e4 {[%clk 0:03:00.9]} 1... c6 {[%clk 0:02:57.8]} 2. d4 {[%clk 0:03:00.7]}
2... d5 {[%clk 0:02:57.6]} 3. exd5 {[%clk 0:03:01.6]} 3... cxd5 {[%clk
0:02:57.7]} 4. Bd3 {[%clk 0:03:02]} 4... Nc6 {[%clk 0:02:56.4]} 5. c3 {[%clk
0:03:01.9]} 5... g6 {[%clk 0:02:56.2]} 6. Bf4 {[%clk 0:02:59.6]} 6... Nh6 {[%clk
0:02:55.2]} 7. Nd2 {[%clk 0:02:58.4]} 7... Bf5 {[%clk 0:02:53.9]} 8. Bxf5 {[%clk
0:02:56.1]} 8... Nxf5 {[%clk 0:02:53.7]} 9. Ngf3 {[%clk 0:02:55.1]} 9... Bg7
{[%clk 0:02:54]} 10. O-O {[%clk 0:02:54.4]} 10... O-O {[%clk 0:02:54.1]} 11. Re1
{[%clk 0:02:54.9]} 11... e6 {[%clk 0:02:40.8]} 12. Qe2 {[%clk 0:02:50.7]} 12...
Re8 {[%clk 0:02:36]} 13. a4 {[%clk 0:02:46.8]} 13... Rc8 {[%clk 0:02:31.2]} 14.
g3 {[%clk 0:02:36.2]} 14... Qb6 {[%clk 0:02:28]} 15. Nf1 {[%clk 0:02:32.7]}
15... a6 {[%clk 0:02:16.4]} 16. h4 {[%clk 0:02:30.4]} 16... Na5 {[%clk
0:02:08.3]} 17. h5 {[%clk 0:02:20.8]} 17... Nc4 {[%clk 0:02:03.3]} 18. Rab1
{[%clk 0:02:16.9]} 18... f6 {[%clk 0:01:53.3]} 19. Qd3 {[%clk 0:01:44.5]} 19...
g5 {[%clk 0:01:30]} 20. Bd2 {[%clk 0:01:37.4]} 20... Qc7 {[%clk 0:01:15.8]} 21.
Re2 {[%clk 0:01:28.7]} 21... Nfd6 {[%clk 0:01:01.7]} 22. b3 {[%clk 0:01:25.3]}
22... Nxd2 {[%clk 0:01:00.8]} 23. N1xd2 {[%clk 0:01:16.8]} 23... Qxc3 {[%clk
0:00:56.7]} 24. Qxc3 {[%clk 0:01:06.3]} 24... Rxc3 {[%clk 0:00:56.3]} 25. Rbe1
{[%clk 0:01:06.7]} 25... Kf7 {[%clk 0:00:56.2]} 26. Kg2 {[%clk 0:01:07.3]} 26...
Bf8 {[%clk 0:00:49.4]} 27. g4 {[%clk 0:01:05.7]} 27... h6 {[%clk 0:00:47.8]} 28.
Nh2 {[%clk 0:01:00.2]} 28... Bg7 {[%clk 0:00:42.4]} 29. Nhf1 {[%clk 0:00:59.3]}
29... f5 {[%clk 0:00:40.6]} 30. Re3 {[%clk 0:00:35.4]} 30... Bxd4 {[%clk
0:00:37.4]} 31. Rxc3 {[%clk 0:00:31.5]} 31... Bxc3 {[%clk 0:00:38.3]} 32. gxf5
{[%clk 0:00:30.3]} 32... Nxf5 {[%clk 0:00:27.2]} 33. Rc1 {[%clk 0:00:30.4]}
33... Bxd2 {[%clk 0:00:26.8]} 34. Nxd2 {[%clk 0:00:30]} 34... e5 {[%clk
0:00:27.2]} 35. Rc7+ {[%clk 0:00:29.2]} 35... Re7 {[%clk 0:00:27.4]} 36. Rc8
{[%clk 0:00:29.9]} 36... Ng7 {[%clk 0:00:25.3]} 37. Rd8 {[%clk 0:00:27.3]} 37...
Nxh5 {[%clk 0:00:22.8]} 38. Kf3 {[%clk 0:00:26.2]} 38... Nf6 {[%clk 0:00:22.2]}
39. Rh8 {[%clk 0:00:24.7]} 39... Kg7 {[%clk 0:00:22.2]} 40. Rb8 {[%clk
0:00:24.8]} 40... h5 {[%clk 0:00:22.8]} 41. Nf1 {[%clk 0:00:24.5]} 41... h4
{[%clk 0:00:20.8]} 42. Ne3 {[%clk 0:00:24.7]} 42... e4+ {[%clk 0:00:18.9]} 43.
Ke2 {[%clk 0:00:24.4]} 43... Kg6 {[%clk 0:00:19.3]} 44. Rd8 {[%clk 0:00:23.9]}
44... g4 {[%clk 0:00:18.6]} 45. Rd6 {[%clk 0:00:21.2]} 45... Kg5 {[%clk
0:00:17.1]} 46. Nxd5 {[%clk 0:00:20.3]} 46... Nxd5 {[%clk 0:00:16.9]} 47. Rxd5+
{[%clk 0:00:21.2]} 47... Kf4 {[%clk 0:00:17.6]} 48. Rh5 {[%clk 0:00:19.2]} 48...
h3 {[%clk 0:00:18]} 49. Rh8 {[%clk 0:00:19.4]} 49... Rf7 {[%clk 0:00:17.5]} 50.
Rh6 {[%clk 0:00:17.6]} 50... Rg7 {[%clk 0:00:14.9]} 51. Rf6+ {[%clk 0:00:17.1]}
51... Kg5 {[%clk 0:00:15.3]} 52. Rf8 {[%clk 0:00:16.6]} 52... Rh7 {[%clk
0:00:15.5]} 53. Rg8+ {[%clk 0:00:15.1]} 53... Kf6 {[%clk 0:00:16]} 0-1